{"text_format":"3","workbook":"xlsx","n_sheets":5,"sheets":["Dashboard","Uitgaven & inkomsten","Budgetrapport","Gegevenslijsten","Draaitabel Categorie"],"not_rendered":{"charts":3,"defined_names":18,"pivot_tables":2},"read":"whole","date_system":"1900"}

{"sheet":"Dashboard","index":0,"n_rows":21,"n_cols":16,"rows_kept":21,"merged":[[5,2,5,3],[8,9,8,10],[9,9,9,10],[10,9,10,10]]}
[]
[null,null,"Tweemaandelijks budget voor thuis",{"$nulls":12},"DASHBOARD"]
[]
[]
[]
[null,null,{"$f":"CHOOSE(NummerMaand,\"Januari\",\"Februari\",\"Maart\",\"April\",\"Mei\",\"Juni\",\"Juli\",\"Augustus\",\"September\",\"Oktober\",\"November\",\"December\")","v":"Augustus"},null,8,{"$nulls":5},2012]
[]
[]
[null,null,"MAANDELIJKSE TOTALEN","Monthly Totals",{"$nulls":5},"JAARLIJKSE TOTALEN",null,"Annual Totals"]
[null,null,"INKOMSTEN","Uitgaven",{"$f":"SUMIF(Uitgaven[DATUM],\"<=\"&DatumMaandEinde,Uitgaven[BEDRAG])-SUMIF(Uitgaven[DATUM],\"<\"&DatumMaandBegin,Uitgaven[BEDRAG])","v":{"v":0,"d":"€ 0"}},{"$nulls":4},"INKOMSTEN",null,"Uitgaven",{"$f":"SUM(IF(YEAR(Uitgaven[DATUM])=K6,Uitgaven[BEDRAG]))","v":{"v":10242,"d":"€ 10,242"}}]
[null,null,"UITGAVEN","inkomsten",{"$f":"SUMIF(inkomsten[DATUM],\"<=\"&DatumMaandEinde,inkomsten[BEDRAG])-SUMIF(inkomsten[DATUM],\"<\"&DatumMaandBegin,inkomsten[BEDRAG])","v":{"v":0,"d":"€ 0"}},{"$nulls":4},"UITGAVEN",null,"inkomsten",{"$f":"SUM(IF(YEAR(inkomsten[DATUM])=K6,inkomsten[BEDRAG]))","v":{"v":12700,"d":"€ 12,700"}}]
[]
[]
[]
[]
[]
[{"$nulls":3},"JANUARI","FEBRUARI","MAART","APRIL","MEI","JUNI","JULI","AUGUSTUS","SEPTEMBER","OKTOBER","NOVEMBER","DECEMBER"]
[null,null,"Inkomsten 1-15",{"$f":"SUMIFS(inkomsten[BEDRAG],inkomsten[BESCHRIJVING],\"<=\"&DtmMidden,inkomsten[BESCHRIJVING],\">=\"&DtmBegin)","v":{"v":0,"d":"€ 0.00"}},{"$f":"SUMIFS(inkomsten[BEDRAG],inkomsten[BESCHRIJVING],\"<=\"&DtmMidden,inkomsten[BESCHRIJVING],\">=\"&DtmBegin)","v":{"v":0,"d":"€ 0.00"}},{"$f":"SUMIFS(inkomsten[BEDRAG],inkomsten[BESCHRIJVING],\"<=\"&DtmMidden,inkomsten[BESCHRIJVING],\">=\"&DtmBegin)","v":{"v":0,"d":"€ 0.00"}},{"$f":"SUMIFS(inkomsten[BEDRAG],inkomsten[BESCHRIJVING],\"<=\"&DtmMidden,inkomsten[BESCHRIJVING],\">=\"&DtmBegin)","v":{"v":0,"d":"€ 0.00"}},{"$f":"SUMIFS(inkomsten[BEDRAG],inkomsten[BESCHRIJVING],\"<=\"&DtmMidden,inkomsten[BESCHRIJVING],\">=\"&DtmBegin)","v":{"v":0,"d":"€ 0.00"}},{"$f":"SUMIFS(inkomsten[BEDRAG],inkomsten[BESCHRIJVING],\"<=\"&DtmMidden,inkomsten[BESCHRIJVING],\">=\"&DtmBegin)","v":{"v":0,"d":"€ 0.00"}},{"$f":"SUMIFS(inkomsten[BEDRAG],inkomsten[BESCHRIJVING],\"<=\"&DtmMidden,inkomsten[BESCHRIJVING],\">=\"&DtmBegin)","v":{"v":0,"d":"€ 0.00"}},{"$f":"SUMIFS(inkomsten[BEDRAG],inkomsten[BESCHRIJVING],\"<=\"&DtmMidden,inkomsten[BESCHRIJVING],\">=\"&DtmBegin)","v":{"v":0,"d":"€ 0.00"}},{"$f":"SUMIFS(inkomsten[BEDRAG],inkomsten[BESCHRIJVING],\"<=\"&DtmMidden,inkomsten[BESCHRIJVING],\">=\"&DtmBegin)","v":{"v":0,"d":"€ 0.00"}},{"$f":"SUMIFS(inkomsten[BEDRAG],inkomsten[BESCHRIJVING],\"<=\"&DtmMidden,inkomsten[BESCHRIJVING],\">=\"&DtmBegin)","v":{"v":0,"d":"€ 0.00"}},{"$f":"SUMIFS(inkomsten[BEDRAG],inkomsten[BESCHRIJVING],\"<=\"&DtmMidden,inkomsten[BESCHRIJVING],\">=\"&DtmBegin)","v":{"v":0,"d":"€ 0.00"}},{"$f":"SUMIFS(inkomsten[BEDRAG],inkomsten[BESCHRIJVING],\"<=\"&DtmMidden,inkomsten[BESCHRIJVING],\">=\"&DtmBegin)","v":{"v":0,"d":"€ 0.00"}}]
[null,null,"Inkomsten 16-einde maand",{"$f":"SUMIFS(inkomsten[BEDRAG],inkomsten[BESCHRIJVING],\"<=\"&DtmEinde,inkomsten[BESCHRIJVING],\">=\"&DtmMidden+1)","v":{"v":0,"d":"€ 0.00"}},{"$f":"SUMIFS(inkomsten[BEDRAG],inkomsten[BESCHRIJVING],\"<=\"&DtmEinde,inkomsten[BESCHRIJVING],\">=\"&DtmMidden+1)","v":{"v":0,"d":"€ 0.00"}},{"$f":"SUMIFS(inkomsten[BEDRAG],inkomsten[BESCHRIJVING],\"<=\"&DtmEinde,inkomsten[BESCHRIJVING],\">=\"&DtmMidden+1)","v":{"v":0,"d":"€ 0.00"}},{"$f":"SUMIFS(inkomsten[BEDRAG],inkomsten[BESCHRIJVING],\"<=\"&DtmEinde,inkomsten[BESCHRIJVING],\">=\"&DtmMidden+1)","v":{"v":0,"d":"€ 0.00"}},{"$f":"SUMIFS(inkomsten[BEDRAG],inkomsten[BESCHRIJVING],\"<=\"&DtmEinde,inkomsten[BESCHRIJVING],\">=\"&DtmMidden+1)","v":{"v":0,"d":"€ 0.00"}},{"$f":"SUMIFS(inkomsten[BEDRAG],inkomsten[BESCHRIJVING],\"<=\"&DtmEinde,inkomsten[BESCHRIJVING],\">=\"&DtmMidden+1)","v":{"v":0,"d":"€ 0.00"}},{"$f":"SUMIFS(inkomsten[BEDRAG],inkomsten[BESCHRIJVING],\"<=\"&DtmEinde,inkomsten[BESCHRIJVING],\">=\"&DtmMidden+1)","v":{"v":0,"d":"€ 0.00"}},{"$f":"SUMIFS(inkomsten[BEDRAG],inkomsten[BESCHRIJVING],\"<=\"&DtmEinde,inkomsten[BESCHRIJVING],\">=\"&DtmMidden+1)","v":{"v":0,"d":"€ 0.00"}},{"$f":"SUMIFS(inkomsten[BEDRAG],inkomsten[BESCHRIJVING],\"<=\"&DtmEinde,inkomsten[BESCHRIJVING],\">=\"&DtmMidden+1)","v":{"v":0,"d":"€ 0.00"}},{"$f":"SUMIFS(inkomsten[BEDRAG],inkomsten[BESCHRIJVING],\"<=\"&DtmEinde,inkomsten[BESCHRIJVING],\">=\"&DtmMidden+1)","v":{"v":0,"d":"€ 0.00"}},{"$f":"SUMIFS(inkomsten[BEDRAG],inkomsten[BESCHRIJVING],\"<=\"&DtmEinde,inkomsten[BESCHRIJVING],\">=\"&DtmMidden+1)","v":{"v":0,"d":"€ 0.00"}},{"$f":"SUMIFS(inkomsten[BEDRAG],inkomsten[BESCHRIJVING],\"<=\"&DtmEinde,inkomsten[BESCHRIJVING],\">=\"&DtmMidden+1)","v":{"v":0,"d":"€ 0.00"}}]
[null,null,"Uitgaven 1-15",{"$f":"SUMIFS(Uitgaven[BEDRAG],Uitgaven[DATUM],\"<=\"&DtmMidden,Uitgaven[DATUM],\">=\"&DtmBegin)","v":{"v":0,"d":"€ 0.00"}},{"$f":"SUMIFS(Uitgaven[BEDRAG],Uitgaven[DATUM],\"<=\"&DtmEinde,Uitgaven[DATUM],\">=\"&DtmBegin)","v":{"v":0,"d":"€ 0.00"}},{"$f":"SUMIFS(Uitgaven[BEDRAG],Uitgaven[DATUM],\"<=\"&DtmEinde,Uitgaven[DATUM],\">=\"&DtmBegin)","v":{"v":0,"d":"€ 0.00"}},{"$f":"SUMIFS(Uitgaven[BEDRAG],Uitgaven[DATUM],\"<=\"&DtmEinde,Uitgaven[DATUM],\">=\"&DtmBegin)","v":{"v":0,"d":"€ 0.00"}},{"$f":"SUMIFS(Uitgaven[BEDRAG],Uitgaven[DATUM],\"<=\"&DtmEinde,Uitgaven[DATUM],\">=\"&DtmBegin)","v":{"v":0,"d":"€ 0.00"}},{"$f":"SUMIFS(Uitgaven[BEDRAG],Uitgaven[DATUM],\"<=\"&DtmEinde,Uitgaven[DATUM],\">=\"&DtmBegin)","v":{"v":0,"d":"€ 0.00"}},{"$f":"SUMIFS(Uitgaven[BEDRAG],Uitgaven[DATUM],\"<=\"&DtmEinde,Uitgaven[DATUM],\">=\"&DtmBegin)","v":{"v":0,"d":"€ 0.00"}},{"$f":"SUMIFS(Uitgaven[BEDRAG],Uitgaven[DATUM],\"<=\"&DtmEinde,Uitgaven[DATUM],\">=\"&DtmBegin)","v":{"v":0,"d":"€ 0.00"}},{"$f":"SUMIFS(Uitgaven[BEDRAG],Uitgaven[DATUM],\"<=\"&DtmEinde,Uitgaven[DATUM],\">=\"&DtmBegin)","v":{"v":1425,"d":"€ 1,425.00"}},{"$f":"SUMIFS(Uitgaven[BEDRAG],Uitgaven[DATUM],\"<=\"&DtmEinde,Uitgaven[DATUM],\">=\"&DtmBegin)","v":{"v":6025,"d":"€ 6,025.00"}},{"$f":"SUMIFS(Uitgaven[BEDRAG],Uitgaven[DATUM],\"<=\"&DtmEinde,Uitgaven[DATUM],\">=\"&DtmBegin)","v":{"v":2792,"d":"€ 2,792.00"}},{"$f":"SUMIFS(Uitgaven[BEDRAG],Uitgaven[DATUM],\"<=\"&DtmEinde,Uitgaven[DATUM],\">=\"&DtmBegin)","v":{"v":0,"d":"€ 0.00"}}]
[null,null,"Uitgaven 16-einde maand",{"$f":"SUMIFS(Uitgaven[BEDRAG],Uitgaven[DATUM],\"<=\"&DtmEinde,Uitgaven[DATUM],\">=\"&DtmMidden+1)","v":{"v":0,"d":"€ 0.00"}},{"$f":"SUMIFS(Uitgaven[BEDRAG],Uitgaven[DATUM],\"<=\"&DtmEinde,Uitgaven[DATUM],\">=\"&DtmMidden+1)","v":{"v":0,"d":"€ 0.00"}},{"$f":"SUMIFS(Uitgaven[BEDRAG],Uitgaven[DATUM],\"<=\"&DtmEinde,Uitgaven[DATUM],\">=\"&DtmMidden+1)","v":{"v":0,"d":"€ 0.00"}},{"$f":"SUMIFS(Uitgaven[BEDRAG],Uitgaven[DATUM],\"<=\"&DtmEinde,Uitgaven[DATUM],\">=\"&DtmMidden+1)","v":{"v":0,"d":"€ 0.00"}},{"$f":"SUMIFS(Uitgaven[BEDRAG],Uitgaven[DATUM],\"<=\"&DtmEinde,Uitgaven[DATUM],\">=\"&DtmMidden+1)","v":{"v":0,"d":"€ 0.00"}},{"$f":"SUMIFS(Uitgaven[BEDRAG],Uitgaven[DATUM],\"<=\"&DtmEinde,Uitgaven[DATUM],\">=\"&DtmMidden+1)","v":{"v":0,"d":"€ 0.00"}},{"$f":"SUMIFS(Uitgaven[BEDRAG],Uitgaven[DATUM],\"<=\"&DtmEinde,Uitgaven[DATUM],\">=\"&DtmMidden+1)","v":{"v":0,"d":"€ 0.00"}},{"$f":"SUMIFS(Uitgaven[BEDRAG],Uitgaven[DATUM],\"<=\"&DtmEinde,Uitgaven[DATUM],\">=\"&DtmMidden+1)","v":{"v":0,"d":"€ 0.00"}},{"$f":"SUMIFS(Uitgaven[BEDRAG],Uitgaven[DATUM],\"<=\"&DtmEinde,Uitgaven[DATUM],\">=\"&DtmMidden+1)","v":{"v":300,"d":"€ 300.00"}},{"$f":"SUMIFS(Uitgaven[BEDRAG],Uitgaven[DATUM],\"<=\"&DtmEinde,Uitgaven[DATUM],\">=\"&DtmMidden+1)","v":{"v":875,"d":"€ 875.00"}},{"$f":"SUMIFS(Uitgaven[BEDRAG],Uitgaven[DATUM],\"<=\"&DtmEinde,Uitgaven[DATUM],\">=\"&DtmMidden+1)","v":{"v":0,"d":"€ 0.00"}},{"$f":"SUMIFS(Uitgaven[BEDRAG],Uitgaven[DATUM],\"<=\"&DtmEinde,Uitgaven[DATUM],\">=\"&DtmMidden+1)","v":{"v":0,"d":"€ 0.00"}}]

{"sheet":"Uitgaven & inkomsten","index":1,"n_rows":40,"n_cols":10,"rows_kept":40}
[]
[null,null,"Tweemaandelijks budget voor thuis",{"$nulls":6},"INKOMSTEN EN UITGAVEN"]
[]
[]
[]
[null,null,"INKOMSTEN",{"$nulls":3},"UITGAVEN"]
[]
[null,null,"DATUM","BESCHRIJVING","BEDRAG",null,"DATUM","CATEGORIE","BESCHRIJVING","BEDRAG"]
[null,null,{"$f":"NOW()-14","v":"2012-12-05T13:43:28.230"},"Loonstrook van David",{"v":1300,"d":"€ 1,300.00"},null,{"$f":"NOW()-7","v":"2012-12-12T13:43:28.230"},"Huishouden","Hypotheek",{"v":1000,"d":"€ 1,000.00"}]
[null,null,{"$f":"NOW()-14","v":"2012-12-05T13:43:28.230"},"Loonstrook van Patricia",{"v":1300,"d":"€ 1,300.00"},null,{"$f":"NOW()-7","v":"2012-12-12T13:43:28.230"},"Huishouden","Elektriciteit",{"v":100,"d":"€ 100.00"}]
[null,null,{"$f":"NOW()-28","v":"2012-11-21T13:43:28.230"},"Loonstrook van David",{"v":1500,"d":"€ 1,500.00"},null,"2012-12-12T13:43:28.230","Huishouden","Water/riool",{"v":50,"d":"€ 50.00"}]
[null,null,"2012-11-21T13:43:28.230","Loonstrook van Patricia",{"v":1600,"d":"€ 1,600.00"},null,"2012-12-12T13:43:28.230","Huishouden","Afval",{"v":25,"d":"€ 25.00"}]
[null,null,{"$f":"NOW()-42","v":"2012-11-07T13:43:28.230"},"Loonstrook van David",{"v":1300,"d":"€ 1,300.00"},null,"2012-12-12T13:43:28.230","Huishouden","Mobiele telefoon",{"v":100,"d":"€ 100.00"}]
[null,null,"2012-11-07T13:43:28.230","Loonstrook van Patricia",{"v":1300,"d":"€ 1,300.00"},null,"2012-12-12T13:43:28.230","Huishouden","Vaste telefoon",{"v":30,"d":"€ 30.00"}]
[null,null,{"$f":"NOW()-56","v":"2012-10-24T13:43:28.230"},"Loonstrook van David",{"v":1500,"d":"€ 1,500.00"},null,"2012-12-12T13:43:28.230","Huishouden","Internet",{"v":50,"d":"€ 50.00"}]
[null,null,"2012-10-24T13:43:28.230","Loonstrook van Patricia",{"v":1600,"d":"€ 1,600.00"},null,"2012-12-12T13:43:28.230","Huishouden","Televisie",{"v":50,"d":"€ 50.00"}]
[null,null,{"$f":"NOW()-70","v":"2012-10-10T13:43:28.230"},"Loonstrook van David",{"v":1300,"d":"€ 1,300.00"},null,"2012-12-12T13:43:28.230","Huishouden","Onderhoud/reparaties",{"v":25,"d":"€ 25.00"}]
[{"$nulls":6},{"$f":"NOW()-8","v":"2012-12-11T13:43:28.230"},"Huishouden","Creditcard 1",{"v":100,"d":"€ 100.00"}]
[{"$nulls":6},{"$f":"NOW()-9","v":"2012-12-10T13:43:28.230"},"Ontspanning","Films",{"v":37,"d":"€ 37.00"}]
[{"$nulls":6},{"$f":"NOW()-10","v":"2012-12-09T13:43:28.230"},"Eten","Boodschappen",{"v":350,"d":"€ 350.00"}]
[{"$nulls":6},{"$f":"NOW()-11","v":"2012-12-08T13:43:28.230"},"Eten","Uit eten",{"v":75,"d":"€ 75.00"}]
[{"$nulls":6},{"$f":"NOW()-12","v":"2012-12-07T13:43:28.230"},"Kinderen","Lunchkosten",{"v":150,"d":"€ 150.00"}]
[{"$nulls":6},{"$f":"NOW()-13","v":"2012-12-06T13:43:28.230"},"Beleggingsrekeningen","Spaargeld",{"v":250,"d":"€ 250.00"}]
[{"$nulls":6},{"$f":"NOW()-14","v":"2012-12-05T13:43:28.230"},"Beleggingsrekeningen","Beleggingsrekening",{"v":250,"d":"€ 250.00"}]
[{"$nulls":6},{"$f":"NOW()-15","v":"2012-12-04T13:43:28.230"},"Persoonlijk","Sportschool",{"v":100,"d":"€ 100.00"}]
[{"$nulls":6},{"$f":"NOW()-16","v":"2012-12-03T13:43:28.230"},"Huisdieren","Eten",{"v":50,"d":"€ 50.00"}]
[{"$nulls":6},{"$f":"NOW()-20","v":"2012-11-29T13:43:28.230"},"Huisdieren","Verzorging",{"v":50,"d":"€ 50.00"}]
[{"$nulls":6},{"$f":"NOW()-20","v":"2012-11-29T13:43:28.230"},"Huisdieren","Overig",{"v":50,"d":"€ 50.00"}]
[{"$nulls":6},{"$f":"NOW()-25","v":"2012-11-24T13:43:28.230"},"Vervoer","Betaling auto 1",{"v":300,"d":"€ 300.00"}]
[{"$nulls":6},{"$f":"NOW()-25","v":"2012-11-24T13:43:28.230"},"Vervoer","Betaling auto 2",{"v":350,"d":"€ 350.00"}]
[{"$nulls":6},{"$f":"NOW()-25","v":"2012-11-24T13:43:28.230"},"Vervoer","Autoverzekering",{"v":50,"d":"€ 50.00"}]
[{"$nulls":6},{"$f":"NOW()-30","v":"2012-11-19T13:43:28.230"},"Vervoer","Brandstof",{"v":50,"d":"€ 50.00"}]
[{"$nulls":6},{"$f":"NOW()-31","v":"2012-11-18T13:43:28.230"},"Vervoer","Brandstof",{"v":25,"d":"€ 25.00"}]
[{"$nulls":6},{"$f":"NOW()-42","v":"2012-11-07T13:43:28.230"},"Vervoer","Onderhoud/reparaties",{"v":150,"d":"€ 150.00"}]
[{"$nulls":6},{"$f":"NOW()-45","v":"2012-11-04T13:43:28.230"},"Huishouden","Hypotheek",{"v":5000,"d":"€ 5,000.00"}]
[{"$nulls":6},{"$f":"NOW()-50","v":"2012-10-30T13:43:28.230"},"Huishouden","Benodigdheden",{"v":200,"d":"€ 200.00"}]
[{"$nulls":6},{"$f":"NOW()-65","v":"2012-10-15T13:43:28.230"},"Huishouden","Vaste telefoon",{"v":100,"d":"€ 100.00"}]
[{"$nulls":6},{"$f":"NOW()-70","v":"2012-10-10T13:43:28.230"},"Huishouden","Afval",{"v":50,"d":"€ 50.00"}]
[{"$nulls":6},{"$f":"NOW()-75","v":"2012-10-05T13:43:28.230"},"Huishouden","Hypotheek",{"v":1000,"d":"€ 1,000.00"}]
[{"$nulls":6},{"$f":"NOW()-78","v":"2012-10-02T13:43:28.230"},"Ontspanning","Films",{"v":75,"d":"€ 75.00"}]

{"sheet":"Budgetrapport","index":2,"n_rows":41,"n_cols":8,"rows_kept":41}
[]
[null,null,"Tweemaandelijks budget voor thuis",{"$nulls":4},"BUDGETRAPPORT"]
{"$rows_empty":10}
[null,null,"UITGAVEN",null,null,"CATEGORIE TOTALEN"]
[]
[null,null,"BESCHRIJVING","TOTALEN"]
[null,null,"Afval",{"v":75,"d":"€ 75.00"}]
[null,null,"Autoverzekering",{"v":50,"d":"€ 50.00"}]
[null,null,"Beleggingsrekening",{"v":250,"d":"€ 250.00"}]
[null,null,"Benodigdheden",{"v":200,"d":"€ 200.00"}]
[null,null,"Betaling auto 1",{"v":300,"d":"€ 300.00"}]
[null,null,"Betaling auto 2",{"v":350,"d":"€ 350.00"}]
[null,null,"Boodschappen",{"v":350,"d":"€ 350.00"}]
[null,null,"Brandstof",{"v":75,"d":"€ 75.00"}]
[null,null,"Creditcard 1",{"v":100,"d":"€ 100.00"}]
[null,null,"Elektriciteit",{"v":100,"d":"€ 100.00"}]
[null,null,"Eten",{"v":50,"d":"€ 50.00"}]
[null,null,"Films",{"v":112,"d":"€ 112.00"}]
[null,null,"Hypotheek",{"v":7000,"d":"€ 7,000.00"}]
[null,null,"Internet",{"v":50,"d":"€ 50.00"}]
[null,null,"Lunchkosten",{"v":150,"d":"€ 150.00"}]
[null,null,"Mobiele telefoon",{"v":100,"d":"€ 100.00"}]
[null,null,"Onderhoud/reparaties",{"v":175,"d":"€ 175.00"}]
[null,null,"Overig",{"v":50,"d":"€ 50.00"}]
[null,null,"Spaargeld",{"v":250,"d":"€ 250.00"}]
[null,null,"Sportschool",{"v":100,"d":"€ 100.00"}]
[null,null,"Televisie",{"v":50,"d":"€ 50.00"}]
[null,null,"Uit eten",{"v":75,"d":"€ 75.00"}]
[null,null,"Vaste telefoon",{"v":130,"d":"€ 130.00"}]
[null,null,"Verzorging",{"v":50,"d":"€ 50.00"}]
[null,null,"Water/riool",{"v":50,"d":"€ 50.00"}]
[null,null,"TOTAAL",{"v":10242,"d":"€ 10,242.00"}]

{"sheet":"Gegevenslijsten","index":3,"n_rows":20,"n_cols":14,"rows_kept":20}
[]
[null,null,"Tweemaandelijks budget voor thuis",{"$nulls":10},"GEGEVENSLIJSTEN"]
[]
[]
[null,null,"INSTELLINGEN         De gegevens van Categorie hieronder worden ingevuld in de vervolgkeuzelijsten in de tabel Uitgaven op het blad Uitgaven en inkomsten. Wijzig de categorienamen of de beschrijvingen onder elke categorie om de lijsten bij te werken."]
[]
[null,null,"Huishouden","Ontspanning","Eten","Giften/donaties","Kinderen","Beleggingsrekeningen","Medisch","Overig","Persoonlijk","Huisdieren","Belasting/juridisch","Vervoer"]
[null,null,"Hypotheek","Films","Boodschappen","Goede doelen 1","Kleding","Persoonlijke pensioenregeling","Dokter/kliniek","Overig","Kleding","Eten","Overheid","Betaling auto 1"]
[null,null,"Elektriciteit","Video/films","Uit eten","Goede doelen 2","Speelgoed/games","Spaargeld","Verzekering","Organisatiebijdragen","Haar/nagels","Benodigdheden","Provincie","Betaling auto 2"]
[null,null,"Water/riool","Muziek",null,"Goede doelen 3","Lunchkosten","Controles",null,null,"Stomerij","Medisch","Lokaal","Autoverzekering"]
[null,null,"Afval","Concerten/theater",null,"Cadeau","Bijdragen","Pensioen",null,null,"Sportschool","Verzorging","Overig","Licenties/registratie"]
[null,null,"Mobiele telefoon","Sportevenementen",null,null,"Schoolspullen","Beleggingsrekening",null,null,"Winkelen","Overig","Advocaat","Brandstof"]
[null,null,"Vaste telefoon","Overig",null,null,"Overig","Universiteit",null,null,"Overig",null,"Alimentatie voor kinderen","Onderhoud/reparaties"]
[null,null,"Internet",{"$nulls":3},"Wasserij","Leningen",{"$nulls":4},"Alimentatie","Openbaar vervoer"]
[null,null,"Televisie",{"$nulls":4},"Studiebeurs",{"$nulls":4},"Overig"]
[null,null,"Onderhoud/reparaties"]
[null,null,"Benodigdheden"]
[null,null,"Kabel/internet/telefoon"]
[null,null,"Creditcard 1"]
[null,null,"Creditcard 2"]

{"sheet":"Draaitabel Categorie","index":4,"n_rows":16,"n_cols":14,"rows_kept":16,"hidden":true}
[]
[null,null,"Tweemaandelijks budget voor thuis",{"$nulls":10},"DRAAITABEL CATEGORIE"]
[]
[]
[null,"Deze draaitabel is de gegevensbron voor de draaigrafiek Categorietotalen in het Budgetrapport. "]
[]
[null,null,"Popisky řádků","Som van BEDRAG"]
[null,null,"Beleggingsrekeningen",{"v":500,"d":"€ 500"}]
[null,null,"Eten",{"v":425,"d":"€ 425"}]
[null,null,"Huisdieren",{"v":150,"d":"€ 150"}]
[null,null,"Huishouden",{"v":7880,"d":"€ 7,880"}]
[null,null,"Kinderen",{"v":150,"d":"€ 150"}]
[null,null,"Ontspanning",{"v":112,"d":"€ 112"}]
[null,null,"Persoonlijk",{"v":100,"d":"€ 100"}]
[null,null,"Vervoer",{"v":925,"d":"€ 925"}]
[null,null,"Celkový součet",{"v":10242,"d":"€ 10,242"}]